bitfinex/quotes_BTCUSD_20240827
["timestamp","ask_amount","ask_price","bid_price","bid_amount"]
[1724775943815,1.08259072,62048.0,62047.0,0.1510042]
[1724775944015,0.34913045,62048.0,62047.0,0.1510042]
[1724775944375,0.37438377,62048.0,62047.0,0.1510042]
[1724775944578,0.69671477,62048.0,62047.0,0.1510042]
[1724775944779,0.99379245,62048.0,62047.0,0.1510042]
[1724775945184,1.04190957,62048.0,62047.0,0.1510042]
[1724775945389,1.20187502,62048.0,62047.0,0.1510042]
[1724775945720,0.71957857,62048.0,62047.0,0.1510042]
[1724775945891,0.67146145,62048.0,62047.0,0.1510042]
[1724775946771,1.04190957,62048.0,62047.0,0.1510042]
[1724775946969,0.99379245,62048.0,62047.0,0.1510042]
[1724775947168,1.06596441,62048.0,62047.0,0.1510042]
[1724775947515,1.22592986,62048.0,62047.0,0.1510042]
[1724775947753,1.25118316,62048.0,62047.0,0.1510042]
[1724775949458,1.1790112,62048.0,62047.0,0.1510042]
[1724775949906,1.53668387,62048.0,62047.0,0.0865042]
[1724775950121,1.53668387,62048.0,62047.0,0.0019042]
[1724775950331,1.85901487,62048.0,62047.0,0.0019042]
[1724775951624,1.128249,62043.0,62042.0,0.0009042]
[1724775951821,1.76617954,62043.0,62042.0,0.0009042]
[1724775951976,1.66888712,62043.0,62042.0,0.0009042]
[1724775952188,1.78918288,62043.0,62042.0,0.1552042]
[1724775952522,1.38338345,62043.0,62042.0,0.1552042]
[1724775952723,1.35932581,62043.0,62042.0,0.1552042]
[1724775953291,1.51929126,62043.0,62042.0,0.1552042]
[1724775953474,1.32521445,62043.0,62042.0,0.1552042]
[1724775954293,1.40938505,62043.0,62042.0,0.1552042]
[1724775955080,1.38638505,62043.0,62042.0,0.1552042]
[1724775955279,1.31421445,62043.0,62042.0,0.1552042]
[1724775956470,1.67191606,62043.0,62042.0,0.1552042]
[1724775956666,1.83188151,62043.0,62042.0,0.1552042]
[1724775958104,1.92811283,62043.0,62042.0,0.1552042]
[1724775958529,1.92812324,62043.0,62042.0,0.1552042]
[1724775958704,1.83188363,62043.0,62042.0,0.1552042]
[1724775959062,1.92812053,62043.0,62042.0,0.1552042]
[1724775959628,1.92812053,62043.0,62042.0,0.0872042]
[1724775960177,1.92811889,62043.0,62042.0,0.0872042]
[1724775960384,1.95111889,62043.0,62042.0,0.0872042]
[1724775960586,1.95111889,62043.0,62042.0,0.0009042]
[1724775961215,1.44579644,62043.0,62042.0,0.0860042]
[1724775961417,0.34714345,62043.0,62042.0,0.1497042]
[1724775961755,0.66950045,62043.0,62042.0,0.1497042]
[1724775961954,0.99185745,62043.0,62042.0,0.1497042]
[1724775963624,0.66950045,62043.0,62042.0,0.1497042]
[1724775963740,0.34714345,62043.0,62042.0,0.1497042]
[1724775964318,0.66950045,62043.0,62042.0,0.1497042]
[1724775965749,1.14492905,62043.0,62042.0,0.1497042]
[1724775966379,1.46728605,62043.0,62042.0,0.1497042]
[1724775966841,1.51542346,62043.0,62042.0,0.1497042]
[1724775967666,0.71763786,62043.0,62042.0,0.1497042]
[1724775967851,0.18596545,62043.0,62042.0,0.1497042]
[1724775968907,0.18596545,62043.0,62042.0,0.3108852]
[1724775968908,0.012,62043.0,62042.0,0.3108852]
[1724775969212,0.04813741,62051.0,62049.0,0.0686]
[1724775969410,0.29290612,62054.0,62050.0,0.47492]
[1724775969411,0.04813741,62053.0,62050.0,0.47492]
[1724775969611,0.15996545,62053.0,62052.0,0.1526]
[1724775971020,0.2207,62054.0,62053.0,0.642557]
[1724775971222,0.2207,62054.0,62053.0,0.320252]
[1724775971462,0.38066545,62054.0,62053.0,0.1541]
[1724775971578,1.2292944,62054.0,62053.0,0.1541]
[1724775971780,0.8058,62050.0,62049.0,0.0852]
[1724775971991,0.161178,62043.0,62042.0,0.0801042]
[1724775972210,0.161178,62043.0,62040.0,0.0009042]
[1724775972211,0.48355,62041.0,62040.0,0.0009042]
[1724775972601,1.64592574,62041.0,62040.0,0.0009042]
[1724775972808,1.66892574,62041.0,62040.0,0.0009042]
[1724775973248,1.6941819,62041.0,62040.0,0.0009042]
[1724775974431,2.16681088,62041.0,62040.0,0.0009042]
[1724775974631,2.32677633,62041.0,62040.0,0.0009042]
[1724775974785,2.33677633,62041.0,62040.0,0.0009042]
[1724775975413,2.34977633,62041.0,62040.0,0.0009042]
[1724775975647,2.35005658,62041.0,62040.0,0.0009042]
[1724775976004,2.32480042,62041.0,62040.0,0.0009042]
[1724775977656,2.16483497,62041.0,62040.0,0.0009042]
[1724775977988,1.34660749,62041.0,62040.0,0.0801042]
[1724775978200,1.32360749,62041.0,62040.0,0.0801042]
[1724775978443,1.81403508,62041.0,62040.0,0.0801042]
[1724775978642,1.81403508,62041.0,62040.0,0.0009042]
[1724775978643,1.85228975,62041.0,62040.0,0.0009042]
[1724775978865,2.0122552,62041.0,62040.0,0.0009042]
[1724775979169,1.9982552,62041.0,62040.0,0.0009042]
[1724775979392,1.9992552,62041.0,62040.0,0.0009042]
[1724775979815,1.83928975,62041.0,62040.0,0.0009042]
[1724775980193,1.85962369,62041.0,62040.0,0.0009042]
[1724775980422,2.18199069,62041.0,62040.0,0.0009042]
[1724775980871,2.19599069,62041.0,62040.0,0.0009042]
[1724775981451,2.3589807,62041.0,62040.0,0.0009042]
[1724775981601,2.51894615,62041.0,62040.0,0.0009042]
[1724775981939,2.3557622,62041.0,62040.0,0.0009042]
[1724775982291,2.23889675,62041.0,62040.0,0.0009042]
[1724775982496,0.805942,62039.0,62032.0,0.0009042]
[1724775982699,1.34662593,62039.0,62033.0,0.00019486]
[1724775982898,2.14277102,62039.0,62033.0,0.00019486]
[1724775983051,2.30581736,62039.0,62033.0,0.00019486]
[1724775983819,2.31981736,62039.0,62033.0,0.00019486]
[1724775984120,2.33381736,62039.0,62033.0,0.00019486]
[1724775984552,2.49378281,62039.0,62033.0,0.00019486]
[1724775985092,2.49206642,62039.0,62033.0,0.00019486]
[1724775986336,2.49206642,62039.0,62032.0,0.0009042]
[1724775986563,2.32903211,62039.0,62032.0,0.0009042]
[1724775987471,2.31503211,62039.0,62032.0,0.0009042]
[1724775987869,2.32903211,62039.0,62032.0,0.0009042]
[1724775988093,2.31503211,62039.0,62032.0,0.0009042]
[1724775988495,2.974073,62039.0,62032.0,0.0009042]
[1724775988720,1.19398589,62033.0,62032.0,0.0009042]
[1724775988942,2.05709309,62033.0,62032.0,0.0009042]
[1724775989167,2.85155155,62033.0,62032.0,0.0009042]
[1724775989875,2.85155155,62033.0,62025.0,0.0009042]
[1724775989876,1.560002,62026.0,62025.0,0.0009042]
[1724775990102,2.8715955,62026.0,62025.0,0.0009042]
[1724775990519,3.55476003,62026.0,62025.0,0.0009042]
[1724775990727,3.95307773,62026.0,62025.0,0.0009042]
[1724775990930,3.30096677,62026.0,62025.0,0.0009042]
[1724775991133,3.34230574,62026.0,62025.0,0.0009042]
[1724775991350,3.63063273,62026.0,62025.0,0.0009042]
[1724775991570,3.35630574,62026.0,62025.0,0.0009042]
[1724775991954,3.38305889,62026.0,62025.0,0.0009042]
[1724775992175,3.99383088,62026.0,62025.0,0.0009042]
[1724775992399,3.99383088,62026.0,62007.0,0.47989634]
[1724775992400,0.806347,62008.0,62007.0,0.47989634]
[1724775992581,0.806347,62008.0,61997.0,0.009042]
[1724775992582,0.483823,62006.0,61997.0,0.009042]
[1724775992780,1.03867649,62006.0,61997.0,0.009042]
[1724775993203,1.31415538,62006.0,61997.0,0.009042]
[1724775993413,1.36235873,62006.0,61997.0,0.009042]
[1724775993715,0.34650838,62006.0,62003.0,0.00019486]
[1724775993850,0.68305738,62006.0,62005.0,0.072942]
[1724775994050,0.03926893,62006.0,62005.0,0.077942]
[1724775994256,0.014,62006.0,62005.0,0.239219]
[1724775994461,0.014,62006.0,62005.0,0.23941386]
[1724775994657,0.014,62006.0,62005.0,0.07813686]
[1724775995097,0.01,62006.0,62005.0,0.07813686]
[1724775995297,0.01,62006.0,62005.0,0.15963686]
[1724775995507,0.16126,62012.0,62007.0,0.0815]
[1724775995689,0.15996545,62011.0,62008.0,0.0639]
[1724775995885,0.15996545,62011.0,62009.0,0.0815]
[1724775996535,0.26140923,62011.0,62009.0,0.0815]
[1724775996909,0.58393223,62011.0,62009.0,0.0815]
[1724775997119,0.161264,62010.0,62009.0,0.0815]
[1724775997296,1.28881345,62010.0,62009.0,0.0815]
[1724775997499,1.3370168,62010.0,62009.0,0.0815]
[1724775997726,1.28881345,62010.0,62009.0,0.0815]
[1724775997980,1.0144534,62010.0,62009.0,0.0815]
[1724775998102,0.96628545,62010.0,62009.0,0.0815]
[1724775998297,1.28881345,62010.0,62009.0,0.0815]
[1724775998907,1.30281345,62010.0,62009.0,0.0815]
[1724775999314,1.28881345,62010.0,62009.0,0.0815]
[1724775999995,0.65575745,62010.0,62009.0,0.0815]
[1724776000185,0.66575745,62010.0,62009.0,0.0815]
[1724776000495,0.76371749,62010.0,62009.0,0.0815]
[1724776000942,0.78898383,62010.0,62009.0,0.0815]
[1724776001112,0.18523179,62010.0,62009.0,0.1451]
[1724776001349,0.35549579,62010.0,62009.0,0.1451]
[1724776001723,0.67802379,62010.0,62009.0,0.1451]
[1724776001923,0.68902379,62010.0,62009.0,0.1451]
[1724776002124,0.79507806,62010.0,62009.0,0.1451]
[1724776002725,0.68902379,62010.0,62009.0,0.1451]
[1724776003571,0.36649579,62010.0,62009.0,0.1451]
[1724776003981,0.68902379,62010.0,62009.0,0.1451]
[1724776004527,0.20523179,62010.0,62009.0,0.1451]
[1724776004932,0.04526634,62010.0,62009.0,0.311366]
[1724776005138,0.02,62010.0,62009.0,0.6659398]
[1724776005345,0.02,62010.0,62009.0,0.633899]
[1724776005774,0.02,62010.0,62009.0,0.311366]
[1724776005997,0.02,62010.0,62009.0,0.1501]
[1724776006414,0.02,62010.0,62009.0,0.1451]
[1724776006823,0.02,62010.0,62009.0,0.1501]
[1724776008451,0.02,62010.0,62009.0,0.311366]
[1724776008852,0.02,62010.0,62009.0,0.1501]
[1724776009454,0.02,62010.0,62009.0,0.311366]
[1724776009654,0.02,62010.0,62009.0,0.1501]
[1724776009859,0.02,62010.0,62009.0,0.311366]
[1724776010087,0.02,62010.0,62009.0,0.1501]
[1724776012055,0.02,62010.0,62009.0,0.3122713]
[1724776012260,0.02,62010.0,62009.0,0.1510053]
[1724776013099,0.02,62010.0,62009.0,0.6348043]
[1724776013446,0.02,62010.0,62009.0,0.3122713]
[1724776013874,0.02,62010.0,62009.0,0.6348043]
[1724776014237,0.02,62010.0,62009.0,0.3122713]
[1724776014795,0.02,62010.0,62009.0,0.1671713]
[1724776014967,0.02,62010.0,62009.0,0.1526053]
[1724776015170,0.02,62010.0,62009.0,0.3138713]
[1724776016423,0.02,62010.0,62009.0,0.76545953]
[1724776016572,0.02,62010.0,62009.0,0.9589373]
[1724776016772,0.02,62010.0,62009.0,1.2814703]
[1724776016975,0.02,62010.0,62009.0,0.3138713]
[1724776017315,0.02,62010.0,62009.0,0.1526053]
[1724776017687,0.02,62010.0,62009.0,0.1476053]
[1724776017688,0.33022945,62010.0,62009.0,0.1476053]
[1724776018089,0.40961829,62010.0,62009.0,0.1476053]
[1724776018290,0.66375745,62010.0,62009.0,0.1476053]
[1724776018476,0.65275745,62010.0,62009.0,0.1476053]
[1724776018698,0.71594341,62010.0,62009.0,0.1476053]
[1724776018918,0.24615141,62010.0,62009.0,0.1476053]
[1724776019118,0.33522945,62010.0,62009.0,0.1476053]
[1724776019944,0.65775745,62010.0,62009.0,0.1476053]
[1724776020772,0.72994341,62010.0,62009.0,0.1476053]
[1724776021866,0.65775745,62010.0,62009.0,0.1476053]
[1724776022068,0.72994341,62010.0,62009.0,0.1476053]
[1724776022758,0.65775745,62010.0,62009.0,0.1476053]
[1724776022912,0.70599224,62010.0,62009.0,0.1476053]
[1724776023300,0.65775745,62010.0,62009.0,0.1476053]
[1724776023894,0.73011611,62010.0,62009.0,0.1476053]
[1724776024103,1.1118607,62010.0,62009.0,0.1476053]
[1724776024303,1.11166661,62010.0,62009.0,0.1476053]
[1724776025792,0.72995059,62010.0,62009.0,0.1476053]
[1724776026203,0.65756336,62010.0,62009.0,0.1476053]
[1724776026440,0.72994908,62010.0,62009.0,0.1476053]
[1724776026794,0.65756336,62010.0,62009.0,0.1476053]
[1724776027194,0.72994908,62010.0,62009.0,0.1476053]
[1724776028097,0.65756336,62010.0,62009.0,0.1476053]
[1724776028480,1.25838012,62010.0,62009.0,0.1476053]
[1724776028693,1.13773726,62010.0,62009.0,0.1476053]
[1724776029245,1.46026526,62010.0,62009.0,0.1476053]
[1724776029626,1.46026526,62010.0,62009.0,0.0009053]
[1724776030043,0.322534,62009.0,62006.0,0.1455053]
[1724776030245,0.63858686,62008.0,62006.0,0.1455053]
[1724776030462,0.63989341,62007.0,62006.0,0.1455053]
[1724776030768,0.79988316,62007.0,62006.0,0.1455053]
[1724776032292,0.67609909,62007.0,62006.0,0.1455053]
[1724776032531,0.80195346,62007.0,62006.0,0.1455053]
[1724776032765,0.07450642,62007.0,62006.0,0.1505053]
[1724776032979,0.07950642,62007.0,62006.0,0.1505053]
[1724776034371,0.10367523,62007.0,62006.0,0.1505053]
[1724776034585,0.46150228,62007.0,62006.0,0.1505053]
[1724776035075,0.12793858,62007.0,62006.0,0.1505053]
[1724776035303,0.48576563,62007.0,62006.0,0.1505053]
[1724776035530,0.3648511,62007.0,62006.0,0.1505053]
[1724776036202,0.3648511,62007.0,62006.0,0.1514106]
[1724776036425,0.3648511,62007.0,62006.0,0.16863964]
[1724776036664,0.07956405,62007.0,62006.0,0.16863941]
[1724776036863,0.07956397,62007.0,62006.0,0.16863941]
[1724776037034,0.07956397,62007.0,62006.0,0.1514106]
[1724776037251,0.007,62007.0,62006.0,0.16863864]
[1724776037392,0.05537787,62007.0,62006.0,0.32991264]
[1724776037601,0.05537787,62007.0,62006.0,0.1686374]
[1724776037817,0.07956397,62007.0,62006.0,0.1686374]
[1724776038370,0.007,62007.0,62006.0,0.1686374]
[1724776038505,0.07957106,62007.0,62006.0,0.1686392]
[1724776039700,0.007,62007.0,62006.0,0.1686392]
[1724776040261,0.26373833,62007.0,62006.0,0.0852339]
[1724776040503,1.11518717,62007.0,62006.0,0.0009053]
[1724776040889,1.90717517,62007.0,62006.0,0.0009053]
[1724776041089,2.35748821,62007.0,62006.0,0.0009053]
[1724776041518,2.54105981,62007.0,62006.0,0.0009053]
[1724776041946,2.55205981,62007.0,62006.0,0.0009053]
[1724776042164,2.55005981,62007.0,62006.0,0.0009053]
[1724776042366,2.53905981,62007.0,62006.0,0.0009053]
[1724776042777,2.1482681,62007.0,62006.0,0.0009053]
[1724776042999,1.0193641,62007.0,62006.0,0.0811053]
[1724776043207,0.56905106,62007.0,62006.0,0.0811053]
[1724776043444,0.55705106,62007.0,62006.0,0.1506053]
[1724776043796,0.55705106,62007.0,62006.0,0.36560153]
[1724776043797,0.37181763,62007.0,62006.0,0.36560153]
[1724776044029,0.08656395,62007.0,62006.0,0.33410921]
[1724776044231,0.06237464,62007.0,62006.0,0.33410921]
[1724776044646,0.06237562,62007.0,62006.0,0.33410921]
[1724776044853,0.014,62007.0,62006.0,0.65665821]
[1724776045065,0.014,62007.0,62006.0,0.16783521]
[1724776045308,1.11234119,62007.0,62006.0,0.1506053]
[1724776045568,0.81344468,62007.0,62006.0,0.1506053]
[1724776045777,0.64378145,62007.0,62006.0,0.0009053]
[1724776045968,0.65878145,62007.0,62006.0,0.0009053]
[1724776046163,0.17496545,62007.0,62006.0,0.0009053]
[1724776046368,0.16696545,62007.0,62006.0,0.0009053]
[1724776046572,0.51780932,62007.0,62006.0,0.0009053]
[1724776046783,0.68108132,62007.0,62006.0,0.0009053]
[1724776046980,0.68808132,62007.0,62006.0,0.0009053]
[1724776047135,0.52680932,62007.0,62006.0,0.0009053]
[1724776047337,0.53180932,62007.0,62006.0,0.1515053]
[1724776048183,0.68408132,62007.0,62006.0,0.1515053]
[1724776048557,0.68608132,62007.0,62006.0,0.1515053]
[1724776048954,0.68608132,62007.0,62006.0,0.0009053]
[1724776048955,1.00362532,62007.0,62006.0,0.0009053]
[1724776049164,0.68108132,62007.0,62006.0,0.0009053]
[1724776049382,0.68608132,62007.0,62006.0,0.0009053]
[1724776049604,0.52480932,62007.0,62006.0,0.0009053]
[1724776052237,0.16696545,62007.0,62006.0,0.0009053]
[1724776052556,0.39339609,62007.0,62006.0,0.0009053]
[1724776053114,0.71594009,62007.0,62006.0,0.0009053]
[1724776053315,0.39339609,62007.0,62006.0,0.0009053]
[1724776053463,0.32823745,62007.0,62006.0,0.0009053]
[1724776053866,0.68609566,62007.0,62006.0,0.0009053]
[1724776054877,0.71136127,62007.0,62006.0,0.0009053]
[1724776055079,1.35644927,62007.0,62006.0,0.0009053]
[1724776055236,1.33118366,62007.0,62006.0,0.0009053]
[1724776055433,1.1332909,62007.0,62006.0,0.0009053]
[1724776059002,2.26326969,62007.0,62006.0,0.0009053]
[1724776059597,2.41196969,62007.0,62006.0,0.0009053]
[1724776060732,2.40696969,62007.0,62006.0,0.0009053]
[1724776061109,2.09830424,62007.0,62006.0,0.0009053]
[1724776061320,2.09630424,62007.0,62006.0,0.0009053]
[1724776061833,1.77458324,62007.0,62006.0,0.0009053]
[1724776062028,2.11112724,62007.0,62006.0,0.0009053]
[1724776062230,2.12012724,62007.0,62006.0,0.0009053]
[1724776062408,2.10612724,62007.0,62006.0,0.0009053]
[1724776062579,2.25709269,62007.0,62006.0,0.0009053]
[1724776062775,2.26309269,62007.0,62006.0,0.0009053]
[1724776062980,2.27209269,62007.0,62006.0,0.0009053]
[1724776063742,2.26309269,62007.0,62006.0,0.0009053]
[1724776064048,2.43337498,62007.0,62006.0,0.0009053]
[1724776064577,2.42737498,62007.0,62006.0,0.0009053]
[1724776064761,2.43237498,62007.0,62006.0,0.0009053]
[1724776065391,1.94986553,62007.0,62006.0,0.0009053]
[1724776065618,1.78158324,62007.0,62006.0,0.0009053]
[1724776065838,1.78458324,62007.0,62006.0,0.0009053]
[1724776066005,1.49216722,62007.0,62006.0,0.0009053]
[1724776066571,1.48016722,62007.0,62006.0,0.0009053]
[1724776066992,1.49216722,62007.0,62006.0,0.0009053]
[1724776067477,1.63013267,62007.0,62006.0,0.0009053]
[1724776067696,0.67078601,62007.0,62006.0,0.0009053]
[1724776067823,0.53545842,62007.0,62006.0,0.0009053]
[1724776068023,0.52545842,62007.0,62006.0,0.0009053]
[1724776068485,0.69173042,62007.0,62006.0,0.0009053]
[1724776068629,0.68673042,62007.0,62006.0,0.0009053]
[1724776069052,1.00227442,62007.0,62006.0,0.0009053]
[1724776069473,1.00627442,62007.0,62006.0,0.0009053]
[1724776069819,0.69073042,62007.0,62006.0,0.0009053]
[1724776070454,0.68373042,62007.0,62006.0,0.0009053]
[1724776070632,0.68973042,62007.0,62006.0,0.0009053]
[1724776071064,1.01227442,62007.0,62006.0,0.0009053]
[1724776071695,1.95813911,62007.0,62006.0,0.0009053]
[1724776071922,2.26110755,62007.0,62006.0,0.0009053]
[1724776072653,2.25510755,62007.0,62006.0,0.0009053]
[1724776072848,2.25110755,62007.0,62006.0,0.0009053]
[1724776073049,2.26010755,62007.0,62006.0,0.0009053]
[1724776073202,2.20270755,62007.0,62006.0,0.0009053]
[1724776073408,2.353673,62007.0,62006.0,0.0009053]
[1724776073826,2.365673,62007.0,62006.0,0.0009053]
[1724776074609,2.39094208,62007.0,62006.0,0.0009053]
[1724776074812,2.23097663,62007.0,62006.0,0.0009053]
[1724776075184,2.22097663,62007.0,62006.0,0.0009053]
[1724776075405,2.20570755,62007.0,62006.0,0.0009053]
[1724776077288,2.20119073,62007.0,62006.0,0.0009053]
[1724776078118,2.19119073,62007.0,62006.0,0.0009053]
[1724776078319,2.17919073,62007.0,62006.0,0.0009053]
[1724776078538,2.33915618,62007.0,62006.0,0.0009053]
[1724776078718,2.39142574,62007.0,62006.0,0.0009053]
[1724776078928,2.37842574,62007.0,62006.0,0.0009053]
[1724776079244,2.37642574,62007.0,62006.0,0.0009053]
[1724776079469,2.39042574,62007.0,62006.0,0.0009053]
[1724776080619,2.39042574,62007.0,62006.0,0.00072985]
[1724776080847,2.14516029,62007.0,62006.0,0.14702985]
[1724776081056,2.20886029,62007.0,62006.0,0.00072985]
[1724776084460,2.19686029,62007.0,62006.0,0.00072985]
[1724776084907,2.14616029,62007.0,62006.0,0.00072985]
[1724776085130,2.11916029,62007.0,62006.0,0.00072985]
[1724776085365,2.10689073,62007.0,62006.0,0.00072985]
[1724776085590,2.26685618,62007.0,62006.0,0.00072985]
[1724776085823,2.10689073,62007.0,62006.0,0.00072985]
[1724776086108,2.10689073,62007.0,62006.0,0.14472985]
[1724776086109,0.85188428,62007.0,62006.0,0.14472985]
[1724776086331,1.0153064,62007.0,62006.0,0.14472985]
[1724776086792,0.7067624,62007.0,62006.0,0.14472985]
[1724776087467,1.0293064,62007.0,62006.0,0.14472985]
[1724776093099,0.7067624,62007.0,62006.0,0.14472985]
[1724776093276,0.5454904,62007.0,62006.0,0.14472985]
[1724776093475,0.7067624,62007.0,62006.0,0.14472985]
[1724776093905,1.0293064,62007.0,62006.0,0.14472985]
[1724776094124,0.5454904,62007.0,62006.0,0.14472985]
[1724776095008,0.54543844,62007.0,62006.0,0.14472985]
[1724776095198,0.70671044,62007.0,62006.0,0.14472985]
[1724776095835,0.54543844,62007.0,62006.0,0.14472985]
[1724776096032,0.38566709,62007.0,62006.0,0.63355285]
[1724776096255,0.38566709,62007.0,62006.0,0.95610185]
[1724776096256,0.027823,62007.0,62006.0,0.95610185]
[1724776096469,0.027823,62007.0,62006.0,0.97333856]
[1724776096684,0.027823,62007.0,62006.0,1.12106954]
[1724776097313,0.014823,62007.0,62006.0,1.12106954]
[1724776097523,0.022823,62007.0,62006.0,2.14513143]
[1724776097728,0.000823,62012.0,62011.0,0.811307]
[1724776097951,0.000823,62012.0,62011.0,1.65666291]
[1724776098158,0.0483719,62028.0,62026.0,0.322622]
[1724776098364,0.0483719,62028.0,62027.0,0.63846]
[1724776098577,0.47989634,62036.0,62027.0,0.63846]
[1724776098578,0.0483719,62033.0,62028.0,0.0843]
[1724776098780,0.15996545,62032.0,62029.0,0.245512]
[1724776100039,0.15996545,62032.0,62029.0,0.0843]
[1724776100238,0.15996545,62032.0,62030.0,0.161211]
[1724776100477,0.16596545,62032.0,62030.0,0.166211]
[1724776100830,0.16596545,62032.0,62031.0,0.161209]
[1724776101276,0.16596545,62032.0,62031.0,0.08]
[1724776101573,0.16896545,62032.0,62031.0,0.08]
[1724776101771,0.15996545,62032.0,62031.0,0.08]
[1724776102126,0.16796545,62032.0,62031.0,0.08]
[1724776102328,0.008,62032.0,62031.0,0.246209]
[1724776102599,0.003,62032.0,62031.0,0.63849332]
[1724776102946,0.004,62032.0,62031.0,0.63849332]
[1724776104015,0.004,62032.0,62031.0,0.70189332]
[1724776104312,0.004,62032.0,62031.0,0.627028]
[1724776104520,0.001,62032.0,62031.0,0.627028]
[1724776104722,0.003,62032.0,62031.0,0.627028]
[1724776105073,0.008,62032.0,62031.0,0.628028]
[1724776105474,0.008,62032.0,62031.0,0.950447]
[1724776105672,0.008,62032.0,62031.0,1.08418582]
[1724776106121,0.008,62032.0,62031.0,0.76176682]
[1724776106915,0.008,62032.0,62031.0,0.628028]
[1724776107132,0.008,62032.0,62031.0,0.1444]
[1724776107672,0.16796545,62032.0,62031.0,0.1394]
[1724776108387,0.16796545,62032.0,62031.0,0.300609]
[1724776108588,0.008,62032.0,62031.0,0.305609]
[1724776108832,0.008,62032.0,62031.0,0.6585889]
[1724776109026,0.008,62032.0,62031.0,0.628028]
[1724776109325,0.32917245,62032.0,62031.0,0.076]
[1724776109790,0.32999545,62032.0,62031.0,0.001]
[1724776110009,0.65240945,62032.0,62031.0,0.001]
[1724776110208,0.32999545,62032.0,62031.0,0.001]
[1724776110565,0.65240945,62032.0,62031.0,0.001]
[1724776110794,0.32999545,62032.0,62031.0,0.001]
[1724776111777,0.35525319,62032.0,62031.0,0.001]
[1724776113055,0.67766719,62032.0,62031.0,0.001]
[1724776113250,0.35525319,62032.0,62031.0,0.001]
[1724776113734,0.19404619,62032.0,62031.0,0.001]
[1724776113916,0.35525319,62032.0,62031.0,0.0815]
[1724776114221,0.19404619,62032.0,62031.0,0.0815]
[1724776114660,0.19404619,62032.0,62031.0,0.1485]
[1724776115100,0.16878845,62032.0,62031.0,0.1485]
[1724776115302,0.008823,62032.0,62031.0,0.959547]
[1724776115682,0.008823,62032.0,62031.0,1.281966]
[1724776116828,0.008823,62032.0,62031.0,1.381966]
[1724776116971,0.008823,62032.0,62031.0,1.54193145]
[1724776117616,0.008823,62032.0,62031.0,1.87737223]
[1724776118129,0.008823,62032.0,62031.0,2.03733768]
[1724776118335,0.003823,62032.0,62031.0,2.03633768]
[1724776118572,0.004823,62032.0,62031.0,2.03633768]
[1724776118936,0.007823,62032.0,62031.0,2.03633768]
[1724776120858,0.007823,62032.0,62031.0,1.55395323]
[1724776121105,0.007823,62032.0,62031.0,1.058547]
[1724776121582,0.007823,62032.0,62031.0,1.0594512]
[1724776122897,0.007823,62032.0,62031.0,1.3818702]
[1724776125275,0.007823,62032.0,62031.0,1.0594512]
[1724776125646,0.007823,62032.0,62031.0,1.3818702]
[1724776126028,0.007823,62032.0,62031.0,1.54183565]
[1724776134104,0.000822,62042.0,62041.0,0.005]
[1724776134301,0.000822,62042.0,62041.0,1.88651489]
[1724776134506,0.000822,62042.0,62041.0,1.98651489]
[1724776135406,0.000822,62042.0,62041.0,1.98751489]
[1724776135407,0.014822,62042.0,62041.0,1.98751489]
[1724776135655,0.028822,62042.0,62041.0,2.12034248]
[1724776135869,0.000822,62042.0,62041.0,2.11834248]
[1724776136279,0.001822,62042.0,62041.0,2.12334248]
[1724776136485,0.002822,62042.0,62041.0,2.13434248]
[1724776139343,0.002822,62042.0,62041.0,1.078817]
[1724776139459,0.002822,62042.0,62041.0,1.013117]
[1724776139664,0.002822,62042.0,62041.0,1.335484]
[1724776140177,0.002822,62042.0,62041.0,0.021]
[1724776140178,0.070422,62042.0,62041.0,0.021]
[1724776140387,0.070422,62042.0,62041.0,0.182183]
[1724776140822,0.069422,62042.0,62041.0,0.171183]
[1724776141041,0.069422,62042.0,62041.0,0.01]
[1724776141255,0.070422,62042.0,62041.0,0.02]
[1724776141429,0.069422,62042.0,62041.0,0.01]
[1724776141635,0.068422,62042.0,62039.0,0.005]
[1724776141872,0.156622,62042.0,62041.0,0.012]
[1724776142063,0.000822,62042.0,62041.0,0.166183]
[1724776142307,0.000822,62042.0,62041.0,0.005]
[1724776142443,0.000822,62042.0,62041.0,0.168183]
[1724776142624,0.000822,62042.0,62041.0,0.166183]
[1724776143507,0.000822,62042.0,62041.0,0.48855]
[1724776143624,0.000822,62042.0,62041.0,0.5779441]
[1724776144061,0.000822,62042.0,62041.0,0.810917]
[1724776145135,0.000822,62042.0,62041.0,0.49055]
[1724776145976,0.000822,62042.0,62041.0,0.812917]
[1724776146612,0.000822,62042.0,62041.0,0.81311103]
[1724776147021,0.000822,62042.0,62041.0,0.49074403]
[1724776147254,0.085322,62042.0,62041.0,0.49074403]
[1724776148384,0.000822,62042.0,62041.0,0.49074403]
[1724776149234,0.000822,62042.0,62041.0,0.60429513]
[1724776150390,0.000822,62042.0,62041.0,0.49074403]
[1724776151092,0.000822,62042.0,62041.0,0.16837703]
[1724776151296,0.000822,62042.0,62041.0,0.00219403]
[1724776151449,0.000822,62042.0,62041.0,0.00719403]
[1724776151867,0.000822,62042.0,62041.0,0.16837703]
[1724776153290,0.000822,62042.0,62041.0,0.49074403]
[1724776153519,0.000822,62042.0,62041.0,0.60429433]
[1724776153891,0.000822,62042.0,62041.0,1.40002833]
[1724776154595,0.000822,62042.0,62041.0,1.07766133]
[1724776157941,0.000822,62042.0,62041.0,1.40002833]
[1724776158145,0.000822,62042.0,62041.0,1.3998343]
[1724776158689,0.000822,62042.0,62041.0,1.4998343]
[1724776160074,0.000822,62042.0,62041.0,1.4978343]
[1724776160428,0.001822,62042.0,62041.0,1.5048343]
[1724776160625,0.002822,62042.0,62041.0,1.5128343]
[1724776164543,0.00262798,62042.0,62041.0,1.5128343]
[1724776175473,0.00262798,62042.0,62041.0,0.60355]
[1724776175675,0.00262798,62042.0,62041.0,0.62078285]
[1724776175904,0.00262798,62042.0,62041.0,1.26551685]
[1724776176122,0.00262798,62042.0,62041.0,1.41621685]
[1724776177698,0.100822,62060.0,62059.0,0.005]
[1724776177911,0.14913907,62060.0,62059.0,0.93390574]
[1724776178159,0.14913907,62060.0,62059.0,1.57845174]
[1724776178379,0.14913907,62060.0,62059.0,2.00070868]
[1724776178564,0.14913907,62060.0,62059.0,2.15088003]
[1724776178825,0.100822,62060.0,62059.0,1.82860703]
[1724776179875,0.105822,62060.0,62059.0,1.82860703]
[1724776180297,0.101822,62060.0,62059.0,1.83960703]
[1724776180684,0.101822,62060.0,62059.0,1.84860703]
[1724776181734,0.101822,62060.0,62059.0,1.83139024]
[1724776181952,0.101822,62060.0,62059.0,1.84860494]